bitfinex-derivatives/quotes_BTCF0:USTF0_20250811
["timestamp","ask_amount","ask_price","bid_price","bid_amount"]
[1754882882650,0.97943,121740.0,121730.0,1.25793512]
[1754882882839,1.16447,121740.0,121730.0,1.48738717]
[1754882883033,1.23252,121740.0,121730.0,1.48738717]
[1754882883238,1.23262,121740.0,121730.0,1.48948717]
[1754882884646,0.45934,121740.0,121730.0,1.48948717]
[1754882884848,1.2325,121740.0,121730.0,1.35569717]
[1754882885045,1.58177478,121740.0,121730.0,0.61831089]
[1754882885347,1.3145485,121740.0,121730.0,0.61831089]
[1754882885641,1.3145485,121740.0,121730.0,0.78656089]
[1754882885642,1.3145486,121740.0,121730.0,0.78656089]
[1754882885847,1.16949488,121740.0,121730.0,0.35551089]
[1754882886145,1.94249488,121740.0,121730.0,0.35551089]
[1754882886947,1.94249488,121740.0,121730.0,0.51604089]
[1754882886948,0.9022686,121740.0,121730.0,0.51604089]
[1754882887244,1.6752686,121740.0,121730.0,0.58916089]
[1754882887442,1.6752686,121740.0,121730.0,0.52014089]
[1754882887642,0.9022686,121740.0,121730.0,0.35961089]
[1754882887847,1.6751886,121740.0,121730.0,0.35961089]
[1754882888239,1.6761886,121740.0,121730.0,0.35861089]
[1754882889045,1.17049488,121740.0,121730.0,0.35761089]
[1754882889249,1.94337488,121740.0,121730.0,0.21131798]
[1754882889651,1.94333488,121740.0,121730.0,0.21131798]
[1754882890746,1.6761086,121740.0,121730.0,0.21131798]
[1754882891952,1.17049488,121740.0,121730.0,0.21131798]
[1754882892342,1.94325488,121740.0,121730.0,0.21131798]
[1754882895543,1.94325488,121740.0,121730.0,0.35869217]
[1754882895744,1.17049488,121740.0,121730.0,0.35869217]
[1754882895943,1.94309488,121740.0,121730.0,0.35869217]
[1754882896646,0.2341553,121730.0,121720.0,0.0878]
[1754882896842,0.5458221,121720.0,121710.0,0.00010365]
[1754882897047,1.17384838,121720.0,121710.0,0.00010365]
[1754882897245,0.9066221,121720.0,121710.0,0.20627278]
[1754882897549,0.82448,121720.0,121710.0,0.94290906]
[1754882897949,1.59604,121720.0,121710.0,0.94290906]
[1754882898150,0.46278,121720.0,121710.0,0.94300906]
[1754882898350,1.2353,121720.0,121710.0,1.30380906]
[1754882898652,1.2353,121720.0,121710.0,1.30480906]
[1754882899042,1.3174421,121720.0,121710.0,1.30480906]
[1754882899244,1.3174421,121720.0,121710.0,1.03758278]
[1754882900147,0.5449221,121720.0,121710.0,0.75884999]
[1754882900350,1.3173621,121720.0,121710.0,0.75884999]
[1754882900849,0.5449221,121720.0,121710.0,0.91937999]
[1754882901053,1.3173621,121720.0,121710.0,0.96798999]
[1754882901241,1.3173621,121720.0,121710.0,0.88562278]
[1754882901849,1.3173621,121720.0,121710.0,0.67648278]
[1754882902050,1.94538838,121720.0,121710.0,0.40219273]
[1754882902453,1.93553339,121720.0,121710.0,0.40219273]
[1754882903147,1.93545339,121720.0,121710.0,0.40219273]
[1754882903348,1.16309339,121720.0,121710.0,0.21047278]
[1754882903549,1.93541339,121720.0,121710.0,0.21047278]
[1754882903954,1.93841339,121720.0,121710.0,0.21047278]
[1754882904748,1.93941339,121720.0,121710.0,0.21047278]
[1754882904950,1.16709339,121720.0,121710.0,0.21047278]
[1754882905155,1.93937339,121720.0,121710.0,0.21047278]
[1754882905456,1.93933339,121720.0,121710.0,0.21047278]
[1754882906450,1.16709339,121720.0,121710.0,0.21047278]
[1754882906656,1.93929339,121720.0,121710.0,0.21047278]
[1754882907357,1.93929339,121720.0,121710.0,0.20637278]
[1754882910356,1.93913339,121720.0,121710.0,0.20637278]
[1754882911056,1.67190711,121720.0,121710.0,0.20637278]
[1754882911360,1.67194711,121720.0,121710.0,0.20637278]
[1754882911568,0.89986711,121720.0,121710.0,0.20637278]
[1754882911861,1.67190711,121720.0,121710.0,0.20637278]
[1754882912062,1.67190711,121720.0,121710.0,0.55737278]
[1754882912454,1.67186711,121720.0,121710.0,0.67578278]
[1754882912665,0.89986711,121720.0,121710.0,0.67578278]
[1754882912855,0.42928501,121720.0,121710.0,0.94300906]
[1754882913060,0.07934,121720.0,121710.0,1.30380906]
[1754882913257,1.3218821,121720.0,121710.0,1.03658278]
[1754882913659,1.3218821,121720.0,121710.0,0.91817278]
[1754882914064,0.81714838,121720.0,121710.0,0.91817278]
[1754882914257,1.3198421,121720.0,121710.0,0.91917278]
[1754882914464,1.3198421,121720.0,121710.0,0.98819278]
[1754882914659,1.3198421,121720.0,121710.0,1.03758278]
[1754882914861,1.3198421,121720.0,121710.0,1.03658278]
[1754882915158,1.3198421,121720.0,121710.0,1.03758278]
[1754882915361,1.3178421,121720.0,121710.0,1.03758278]
[1754882915555,1.3178421,121720.0,121710.0,1.12838278]
[1754882916459,1.3178421,121720.0,121710.0,1.12538278]
[1754882916660,1.3178421,121720.0,121710.0,1.05736278]
[1754882916857,1.3177621,121720.0,121710.0,1.13030278]
[1754882917064,1.3244221,121720.0,121710.0,1.13030278]
[1754882917666,1.3244221,121720.0,121710.0,1.36632306]
[1754882918259,1.31456739,121720.0,121710.0,1.37032306]
[1754882919272,1.18509529,121720.0,121710.0,1.63754934]
[1754882919462,0.91956739,121720.0,121710.0,1.40162906]
[1754882919662,0.98982739,121720.0,121710.0,1.40162906]
[1754882919862,1.20306739,121720.0,121710.0,1.40162906]
[1754882920365,1.20306739,121720.0,121710.0,1.13440278]
[1754882920566,0.54320739,121720.0,121710.0,1.14164278]
[1754882920968,1.31480739,121720.0,121710.0,1.14164278]
[1754882921665,1.26747739,121720.0,121710.0,1.14164278]
[1754882921872,1.31480739,121720.0,121710.0,1.14164278]
[1754882923975,1.23266529,121720.0,121710.0,1.14164278]
[1754882924470,1.31480729,121720.0,121710.0,0.30027278]
[1754882924771,1.17123357,121720.0,121710.0,0.34923278]
[1754882924973,1.94263357,121720.0,121710.0,0.34923278]
[1754882925170,1.94263357,121720.0,121710.0,0.30027278]
[1754882925774,1.94263357,121720.0,121710.0,0.54024478]
[1754882926073,1.94263357,121720.0,121710.0,0.85496478]
[1754882926275,1.67640729,121720.0,121710.0,0.85396478]
[1754882926673,1.67740729,121720.0,121710.0,0.85396478]
[1754882926974,1.67740729,121720.0,121710.0,0.66195278]
[1754882927678,1.67740729,121720.0,121710.0,0.57415278]
[1754882927872,0.90600729,121720.0,121710.0,0.35589278]
[1754882928070,0.90600729,121720.0,121710.0,0.69495278]
[1754882928273,1.67724729,121720.0,121710.0,0.69495278]
[1754882928674,0.90600729,121720.0,121710.0,0.69495278]
[1754882928871,1.67720729,121720.0,121710.0,0.69495278]
[1754882929875,1.67620729,121720.0,121710.0,0.69495278]
[1754882930866,1.46296729,121720.0,121710.0,0.69495278]
[1754882931071,0.90500729,121720.0,121710.0,0.96217906]
[1754882931273,1.67508729,121720.0,121710.0,0.62201278]
[1754882931472,1.62775729,121720.0,121710.0,0.69495278]
[1754882931870,0.17756529,121720.0,121710.0,1.32297906]
[1754882932076,0.83666529,121720.0,121710.0,1.32297906]
[1754882933071,0.83666529,121720.0,121710.0,1.32597906]
[1754882933477,0.90692529,121720.0,121710.0,1.41377906]
[1754882934373,0.90692529,121720.0,121710.0,1.70768005]
[1754882935479,0.8191,121720.0,121710.0,1.44045377]
[1754882935669,0.88924,121720.0,121710.0,1.44045377]
[1754882936076,1.05515,121720.0,121710.0,1.70768005]
[1754882936379,1.10248,121720.0,121710.0,1.41377906]
[1754882936580,1.184622,121720.0,121710.0,1.14655278]
[1754882936792,0.557702,121720.0,121710.0,0.66207278]
[1754882937083,1.59576828,121720.0,121710.0,1.02575278]
[1754882937484,1.59576828,121720.0,121710.0,1.09869278]
[1754882937784,1.328542,121720.0,121710.0,1.09869278]
[1754882937983,1.328542,121720.0,121710.0,1.09769278]
[1754882938282,1.328542,121720.0,121710.0,1.09869278]
[1754882938586,1.328542,121720.0,121710.0,1.3350356]
[1754882938776,1.328542,121720.0,121710.0,1.52406463]
[1754882940178,1.328542,121720.0,121710.0,1.3320356]
[1754882940379,0.557702,121720.0,121710.0,1.3320356]
[1754882940582,1.328302,121720.0,121710.0,1.3320356]
[1754882940885,1.328302,121720.0,121710.0,1.09569278]
[1754882941571,0.82492828,121720.0,121710.0,1.02275278]
[1754882941780,1.59552828,121720.0,121710.0,0.65907278]
[1754882941983,1.59552828,121720.0,121710.0,0.29827278]
[1754882942184,1.45295456,121720.0,121710.0,0.21047278]
[1754882942480,1.95628828,121720.0,121710.0,0.21047278]
[1754882942689,1.689062,121720.0,121710.0,0.21047278]
[1754882942986,0.918502,121720.0,121710.0,0.25943278]
[1754882943175,1.95620828,121720.0,121710.0,0.25943278]
[1754882943375,1.95620828,121720.0,121710.0,0.57415278]
[1754882943581,1.95720828,121720.0,121710.0,0.64709278]
[1754882943782,1.18672828,121720.0,121710.0,0.64709278]
[1754882943982,1.95820828,121720.0,121710.0,0.64709278]
[1754882944584,1.690982,121720.0,121710.0,0.64709278]
[1754882944776,1.95820828,121720.0,121710.0,0.64709278]
[1754882946481,1.95820828,121720.0,121710.0,0.57415278]
[1754882946888,1.18772828,121720.0,121710.0,0.57415278]
[1754882947092,1.95808828,121720.0,121710.0,0.57415278]
[1754882947290,1.95808828,121720.0,121710.0,0.40485278]
[1754882947483,1.95800828,121720.0,121710.0,0.21047278]
[1754882947989,1.18772828,121720.0,121710.0,0.21047278]
[1754882948192,1.95800828,121720.0,121710.0,0.21047278]
[1754882948394,1.95796828,121720.0,121710.0,0.21047278]
[1754882949690,1.18772828,121720.0,121710.0,0.21047278]
[1754882949889,1.61927456,121720.0,121710.0,0.21047278]
[1754882950097,2.12224828,121720.0,121710.0,0.21047278]
[1754882950391,1.35204828,121720.0,121710.0,0.21047278]
[1754882950586,2.38947456,121720.0,121710.0,0.21047278]
[1754882950992,2.12216828,121720.0,121710.0,0.21047278]
[1754882952002,0.4797755,121700.0,121690.0,0.11703625]
[1754882952291,1.87788178,121700.0,121690.0,0.24593903]
[1754882952487,1.10780178,121700.0,121690.0,0.36944867]
[1754882952689,1.87792178,121700.0,121690.0,0.45160781]
[1754882952889,1.87788178,121700.0,121690.0,0.45170153]
[1754882953085,1.87798178,121700.0,121690.0,0.45380153]
[1754882953501,1.87798178,121700.0,121690.0,0.52104734]
[1754882953693,1.10790178,121700.0,121690.0,0.47123734]
[1754882953893,1.46870178,121700.0,121690.0,0.52104734]
[1754882954199,2.23870178,121700.0,121690.0,0.52104734]
[1754882954398,2.23870178,121700.0,121690.0,0.32901831]
[1754882954599,2.23870178,121700.0,121690.0,0.56636113]
[1754882955087,2.23870178,121700.0,121690.0,0.51655113]
[1754882955293,2.23870178,121700.0,121690.0,0.56636113]
[1754882955488,2.23970178,121700.0,121690.0,0.56536113]
[1754882956089,1.46970178,121700.0,121690.0,0.59862113]
[1754882956293,2.23962178,121700.0,121690.0,0.59862113]
[1754882956500,2.23962178,121700.0,121690.0,0.56536113]
[1754882956701,1.46970178,121700.0,121690.0,0.32901831]
[1754882956996,1.6115555,121700.0,121690.0,0.76564831]
[1754882957197,1.45773,121700.0,121690.0,1.03287459]
[1754882957404,1.13078,121700.0,121690.0,1.03287459]
[1754882957701,1.13178,121700.0,121690.0,1.03287459]
[1754882958096,0.77098,121700.0,121690.0,1.03087459]
[1754882958298,0.77094,121700.0,121690.0,1.03187459]
[1754882958598,0.7709,121700.0,121690.0,1.39267459]
[1754882958795,0.7699,121700.0,121690.0,1.58640617]
[1754882959003,0.7699,121700.0,121690.0,1.58540617]
[1754882959202,0.7699,121700.0,121690.0,1.58640617]
[1754882960204,0.7699,121700.0,121690.0,1.39467459]
[1754882960591,0.7699,121700.0,121690.0,1.39367459]
[1754882960795,0.7699,121700.0,121690.0,1.39567459]
[1754882960796,0.0001,121700.0,121690.0,1.39567459]
[1754882961095,0.76994,121700.0,121690.0,1.39567459]
[1754882962796,0.76994,121700.0,121690.0,1.63201741]
[1754882963605,0.76994,121700.0,121690.0,1.62791741]
[1754882964800,0.76994,121700.0,121690.0,1.39157459]
[1754882964996,0.0001,121700.0,121690.0,1.39157459]
[1754882965402,0.76958,121700.0,121690.0,1.39157459]
[1754882965706,0.76954,121700.0,121690.0,1.65111529]
[1754882968898,0.76954,121700.0,121690.0,1.91391529]
[1754882969509,0.76942,121700.0,121690.0,1.64668901]
[1754882969708,0.93478,121700.0,121690.0,1.74957129]
[1754882971407,0.76942,121700.0,121690.0,1.74957129]
[1754882972407,0.93478,121700.0,121690.0,1.74957129]
[1754882972602,1.00645,121700.0,121690.0,1.74957129]
[1754882973807,0.93001,121700.0,121690.0,1.74957129]
[1754882974008,1.16704,121700.0,121690.0,1.65437459]
[1754882974405,1.16704,121700.0,121690.0,1.65847459]
[1754882974701,0.8159,121700.0,121690.0,1.65847459]
[1754882974904,1.16704,121700.0,121690.0,1.65847459]
[1754882975507,1.16704,121700.0,121690.0,1.65437459]
[1754882975907,1.16704,121700.0,121690.0,1.89046584]
[1754882978010,1.16704,121700.0,121690.0,1.65437459]
[1754882980908,1.09537,121700.0,121690.0,1.21774459]
[1754882981106,1.1715,121700.0,121690.0,1.49319459]
[1754882982411,1.1715,121700.0,121690.0,1.72926081]
[1754882982609,0.40218,121700.0,121690.0,1.72926081]
[1754882982809,1.17066,121700.0,121690.0,1.72926081]
[1754882983212,1.17066,121700.0,121690.0,1.46203453]
[1754882983415,1.17066,121700.0,121690.0,1.72926081]
[1754882983613,0.40218,121700.0,121690.0,1.72926081]
[1754882983809,1.2527757,121700.0,121690.0,1.72926081]
[1754882984114,1.2527757,121700.0,121690.0,1.46203453]
[1754882984313,1.2527757,121700.0,121690.0,1.65386968]
[1754882984612,1.2527757,121700.0,121690.0,1.41780346]
[1754882984814,1.2527757,121700.0,121690.0,1.41680346]
[1754882985208,1.2527757,121700.0,121690.0,1.68402974]
[1754882985408,1.2527757,121700.0,121690.0,1.49219459]
[1754882986816,1.2527757,121700.0,121690.0,1.22496831]
[1754882987116,1.2527757,121700.0,121690.0,1.49219459]
[1754882987310,1.2527757,121700.0,121690.0,1.49019459]
[1754882987616,1.17062,121700.0,121690.0,1.49219459]
[1754882987817,1.2527757,121700.0,121690.0,1.49219459]
[1754882988613,1.17062,121700.0,121690.0,1.49219459]
[1754882988816,1.17062,121700.0,121690.0,1.49119459]
[1754882989016,1.1703,121700.0,121690.0,1.49119459]
[1754882989613,1.10257,121700.0,121690.0,1.49119459]
[1754882989916,0.76822,121700.0,121690.0,1.49119459]
[1754882990717,0.32938,121700.0,121690.0,1.49119459]
[1754882990917,0.39711,121700.0,121690.0,1.49119459]
[1754882991117,1.16515,121700.0,121690.0,1.49119459]
[1754882991519,1.16515,121700.0,121690.0,1.72740827]
[1754882997432,1.16515,121700.0,121690.0,1.36660827]
[1754882997737,1.16515,121700.0,121690.0,1.49119459]
[1754883000540,0.7677,121700.0,121690.0,1.49119459]
[1754883000938,0.0001,121700.0,121690.0,1.49119459]
[1754883001134,1.13516,121730.0,121720.0,0.19127]
[1754883001444,2.14413,121730.0,121720.0,0.93481291]
[1754883001645,2.14413,121730.0,121720.0,0.79073017]
[1754883001833,2.14413,121730.0,121720.0,0.87288256]
[1754883002032,2.14413,121730.0,121720.0,1.14010884]
[1754883002543,2.14709,121730.0,121720.0,0.68499593]
[1754883002734,1.37975,121730.0,121720.0,0.95232221]
[1754883002936,2.14715,121730.0,121720.0,1.31312221]
[1754883003134,2.14815,121730.0,121720.0,1.31312221]
[1754883003335,1.90666,121730.0,121720.0,1.31312221]
[1754883003537,2.08042,121730.0,121720.0,1.31312221]
[1754883003735,2.08042,121730.0,121720.0,1.54933589]
[1754883003938,2.14815,121730.0,121720.0,1.54933589]
[1754883004446,1.38075,121730.0,121720.0,1.54933589]
[1754883004640,2.14803,121730.0,121720.0,1.54933589]
[1754883004842,1.4628854,121730.0,121720.0,0.85267961]
[1754883005042,2.2302254,121730.0,121720.0,0.85267961]
[1754883005646,2.2302254,121730.0,121720.0,0.94236593]
[1754883005845,2.2302254,121730.0,121720.0,1.05125593]
[1754883006348,2.09101168,121730.0,121720.0,0.20949593]
[1754883006647,2.85817168,121730.0,121720.0,0.20949593]
[1754883007238,1.8237854,121730.0,121720.0,0.25549593]
[1754883007748,2.09101168,121730.0,121720.0,0.20949593]
[1754883007943,2.85809168,121730.0,121720.0,0.44556775]
[1754883008143,2.85809168,121730.0,121720.0,0.49156775]
[1754883009548,2.5908654,121730.0,121720.0,0.52389775]
[1754883009847,2.5908654,121730.0,121720.0,0.92720775]
[1754883010044,2.85809168,121730.0,121720.0,0.92720775]
[1754883010248,2.5908654,121730.0,121720.0,0.85240775]
[1754883010449,1.38075,121730.0,121720.0,1.48043403]
[1754883010641,2.07994,121730.0,121720.0,1.55523403]
[1754883011046,2.15307,121730.0,121720.0,1.55523403]
[1754883011450,2.15307,121730.0,121720.0,1.28800775]
[1754883011753,2.15307,121730.0,121720.0,1.31916221]
[1754883013643,1.38615,121730.0,121720.0,1.31916221]
[1754883013843,2.15295,121730.0,121720.0,1.55501197]
[1754883014040,1.13926,121730.0,121720.0,1.55501197]
[1754883014250,1.90602,121730.0,121720.0,1.55501197]
[1754883015552,2.06803,121730.0,121720.0,1.55501197]
[1754883015748,2.14116,121730.0,121720.0,1.31916221]
[1754883015950,2.14112,121730.0,121720.0,1.31916221]
[1754883016250,2.14112,121730.0,121720.0,1.58196221]
[1754883016451,2.14112,121730.0,121720.0,1.45687539]
[1754883017859,2.14112,121730.0,121720.0,0.27010911]
[1754883017860,2.56619686,121730.0,121720.0,0.27010911]
[1754883018049,3.06539058,121730.0,121720.0,0.15327911]
[1754883018245,2.29887058,121730.0,121720.0,0.27661272]
[1754883018450,3.06539058,121730.0,121720.0,0.205486]
[1754883020050,2.08456658,121730.0,121720.0,0.205486]
[1754883020256,2.85110658,121730.0,121720.0,0.251586]
[1754883021449,2.85110658,121730.0,121720.0,0.44313574]
[1754883022454,2.85110658,121730.0,121720.0,0.39713574]
[1754883022958,2.85110658,121730.0,121720.0,0.251586]
[1754883023163,2.85110658,121730.0,121720.0,0.255686]
[1754883023548,2.08466658,121730.0,121720.0,0.209686]
[1754883023752,2.85098658,121730.0,121720.0,0.255686]
[1754883023953,2.85098658,121730.0,121720.0,0.209686]
[1754883024149,2.85094658,121730.0,121720.0,0.255686]
[1754883024348,3.01525058,121730.0,121720.0,0.209686]
[1754883024649,3.01425058,121730.0,121720.0,0.209686]
[1754883024848,3.01525058,121730.0,121720.0,0.18556132]
[1754883025060,0.0821617,121700.0,121690.0,0.06724581]
[1754883025260,0.0821685,121690.0,121680.0,0.046]
[1754883025459,0.71019478,121690.0,121680.0,0.046]
[1754883025660,1.47647478,121690.0,121680.0,0.16905856]
[1754883025858,1.47647478,121690.0,121680.0,0.20521095]
[1754883026052,1.47647478,121690.0,121680.0,0.20931095]
[1754883026258,1.47657478,121690.0,121680.0,0.20950286]
[1754883026453,1.47663659,121690.0,121680.0,0.20950286]
[1754883026662,1.47667659,121690.0,121680.0,0.20540286]
[1754883027058,1.47667659,121690.0,121680.0,0.27174724]
[1754883027258,1.47867659,121690.0,121680.0,0.56664375]
[1754883028162,1.48067659,121690.0,121680.0,0.56664375]
[1754883029261,1.48067659,121690.0,121680.0,0.27174724]
[1754883029462,0.71535659,121690.0,121680.0,0.27174724]
[1754883029762,1.48163659,121690.0,121680.0,0.27584724]
[1754883030761,0.71535659,121690.0,121680.0,0.27584724]
[1754883030962,1.48163659,121690.0,121680.0,0.27584724]
[1754883031463,1.48163659,121690.0,121680.0,0.51157875]
[1754883031661,1.74886287,121690.0,121680.0,0.44523437]
[1754883031864,1.91322287,121690.0,121680.0,0.36308198]
[1754883032568,1.96318287,121690.0,121680.0,0.55457742]
[1754883032865,1.96314287,121690.0,121680.0,0.55457742]
[1754883033265,1.96314287,121690.0,121680.0,0.31884591]
[1754883033867,1.96314287,121690.0,121680.0,0.12325047]
[1754883034566,1.69591659,121690.0,121680.0,0.12325047]
[1754883034761,1.37869031,121690.0,121680.0,0.12325047]
[1754883035066,1.64591659,121690.0,121680.0,0.12325047]
[1754883035265,1.64591659,121690.0,121680.0,0.35898198]
[1754883035963,0.87971659,121690.0,121680.0,0.35898198]
[1754883036169,1.64599659,121690.0,121680.0,0.35898198]
[1754883036473,1.91322287,121690.0,121680.0,0.23592342]
[1754883036871,1.64595659,121690.0,121680.0,0.23592342]
[1754883037373,1.64595659,121690.0,121680.0,0.23561184]
[1754883037574,1.91318287,121690.0,121680.0,0.23561184]
[1754883038273,1.64595659,121690.0,121680.0,0.23561184]
[1754883039168,1.14694287,121690.0,121680.0,0.23561184]
[1754883039375,1.91310287,121690.0,121680.0,0.00019191]
[1754883040867,1.14694287,121690.0,121680.0,0.00019191]
[1754883041063,1.91310287,121690.0,121680.0,0.00019191]
[1754883041465,1.91310287,121690.0,121680.0,0.00429191]
[1754883041874,1.14694287,121690.0,121680.0,0.00429191]
[1754883042077,1.91310287,121690.0,121680.0,0.00429191]
[1754883045080,1.91300287,121690.0,121680.0,1e-08]
[1754883046375,0.0821752,121680.0,121670.0,0.04861287]
[1754883046580,0.97742776,121680.0,121670.0,0.04871287]
[1754883046887,0.97742776,121680.0,121670.0,0.25350718]
[1754883047787,0.97942776,121680.0,121670.0,0.25350718]
[1754883048489,1.74550776,121680.0,121670.0,0.25350718]
[1754883048692,1.74550776,121680.0,121670.0,0.42087718]
[1754883048988,1.47828148,121680.0,121670.0,0.67664718]
[1754883050690,1.47928148,121680.0,121670.0,0.67664718]
[1754883051695,0.71320148,121680.0,121670.0,0.67664718]
[1754883051992,1.2119752,121680.0,121670.0,0.68064718]
[1754883052392,0.71320148,121680.0,121670.0,0.68064718]
[1754883052585,1.47920148,121680.0,121670.0,0.68064718]
[1754883052786,1.47916148,121680.0,121670.0,0.68064718]
[1754883053088,1.47816148,121680.0,121670.0,0.68064718]
[1754883053287,1.2089352,121680.0,121670.0,0.68064718]
[1754883054693,1.47616148,121680.0,121670.0,0.67664718]
[1754883056592,0.71020148,121680.0,121670.0,0.44109718]
[1754883057388,1.47608148,121680.0,121670.0,0.67664718]
[1754883057587,0.71020148,121680.0,121670.0,0.67664718]
[1754883057890,1.47804148,121680.0,121670.0,0.67664718]
[1754883058491,1.47904148,121680.0,121670.0,0.67664718]
[1754883060591,0.98042776,121680.0,121670.0,0.25350718]
[1754883060787,1.74622776,121680.0,121670.0,0.20496718]
[1754883061193,1.74622776,121680.0,121670.0,0.25350718]
[1754883061796,0.0821955,121650.0,121640.0,0.42314]
[1754883062093,0.3288314,121640.0,121630.0,0.49040613]
[1754883062288,1.75001425,121640.0,121630.0,0.53894613]
[1754883062489,1.75001425,121640.0,121630.0,0.74502889]
[1754883062686,0.63481897,121640.0,121630.0,0.7451006]
[1754883062889,1.40067897,121640.0,121630.0,0.7452006]
[1754883063187,1.39967897,121640.0,121630.0,0.7452006]
[1754883064095,1.39767897,121640.0,121630.0,0.7452006]
[1754883064798,0.79325657,121640.0,121630.0,1.01242688]
[1754883064988,0.79325657,121640.0,121630.0,1.01742688]
[1754883065296,0.79325657,121640.0,121630.0,0.7502006]
[1754883065487,0.79325657,121640.0,121630.0,1.01742688]
[1754883065790,0.6073979,121650.0,121630.0,1.01732688]
[1754883065791,0.3608,121650.0,121630.0,1.01732688]
[1754883065989,1.6609479,121660.0,121650.0,0.47541]
[1754883066385,2.4266679,121660.0,121650.0,0.59900162]
[1754883066597,2.4266679,121660.0,121650.0,0.68121479]
[1754883067398,2.4266679,121660.0,121650.0,0.68521479]
[1754883067589,1.6610479,121660.0,121650.0,0.68531479]
[1754883067789,2.45306571,121660.0,121650.0,0.68531479]
[1754883067988,2.45406571,121660.0,121650.0,0.68531479]
[1754883068688,2.45402571,121660.0,121650.0,0.68531479]
[1754883068884,2.70018571,121660.0,121650.0,0.68531479]
[1754883069089,1.93446571,121660.0,121650.0,0.68131479]
[1754883069296,2.70014571,121660.0,121650.0,0.68131479]
[1754883071591,2.74686571,121660.0,121650.0,0.68131479]
[1754883073291,3.01409199,121660.0,121650.0,0.68131479]
[1754883073598,2.74686571,121660.0,121650.0,0.68131479]
[1754883074192,2.74686571,121660.0,121650.0,0.68531479]
[1754883077001,2.70014571,121660.0,121650.0,0.20990479]
[1754883077201,2.24841199,121660.0,121650.0,0.25643479]
[1754883077404,3.01397199,121660.0,121650.0,0.25643479]
[1754883077801,2.24841199,121660.0,121650.0,0.25643479]
[1754883077999,3.01397199,121660.0,121650.0,0.25643479]
[1754883078400,2.24841199,121660.0,121650.0,0.20990479]
[1754883078595,0.0822022,121640.0,121630.0,0.11386784]
[1754883078799,0.2311458,121620.0,121610.0,0.47541]
[1754883079005,1.0157658,121620.0,121610.0,0.47541]
[1754883079204,1.3765658,121620.0,121610.0,0.87632147]
[1754883079796,1.3765658,121620.0,121610.0,0.87641536]
[1754883080002,1.3766658,121620.0,121610.0,0.87651536]
[1754883080301,1.3766658,121620.0,121610.0,0.88151536]
[1754883080499,1.3575658,121620.0,121610.0,0.68954356]
[1754883081298,1.3575658,121620.0,121610.0,0.68454356]
[1754883082309,1.3766658,121620.0,121610.0,0.68454356]
[1754883082513,1.3767458,121620.0,121610.0,0.75017634]
[1754883082807,1.3576458,121620.0,121610.0,0.75017634]
[1754883084008,1.3556458,121620.0,121610.0,0.75017634]
[1754883084304,0.76566,121620.0,121610.0,1.20907226]
[1754883084710,0.0001,121620.0,121610.0,1.73432826]
[1754883084904,0.76574,121620.0,121610.0,1.73432826]
[1754883085506,0.76574,121620.0,121610.0,1.54265862]
[1754883086312,0.76574,121620.0,121610.0,1.27543234]
[1754883086509,0.76574,121620.0,121610.0,1.54265862]
[1754883086808,0.3608,121630.0,121620.0,0.28375]
[1754883087106,0.0821971,121650.0,121640.0,0.47541]
[1754883087107,0.3608,121650.0,121640.0,0.47541]
[1754883087405,0.3608,121650.0,121640.0,1.12907525]
[1754883087610,1.23444781,121660.0,121650.0,0.47541]
[1754883087803,1.16201781,121660.0,121650.0,1.10343628]
[1754883088004,1.16201781,121660.0,121650.0,1.22641625]
[1754883088205,1.92775781,121660.0,121650.0,1.23051625]
[1754883088401,1.92775781,121660.0,121650.0,1.31271591]
[1754883088804,2.00018781,121660.0,121650.0,1.31271591]
[1754883089912,2.08337651,121660.0,121650.0,1.31271591]
[1754883090110,2.08337651,121660.0,121650.0,0.95191591]
[1754883090412,1.31773651,121660.0,121650.0,0.87633733]
[1754883090802,2.08329651,121660.0,121650.0,0.87633733]
[1754883091612,2.08429651,121660.0,121650.0,0.68468963]
[1754883092410,2.10339651,121660.0,121650.0,0.20927963]
[1754883092610,1.69863651,121660.0,121650.0,0.61085963]
[1754883092904,2.46419651,121660.0,121650.0,0.61085963]
[1754883093109,1.69963651,121660.0,121650.0,0.25180963]
[1754883093315,2.46671651,121660.0,121650.0,0.25180963]
[1754883093702,2.44761651,121660.0,121650.0,0.25180963]
[1754883093909,2.44761651,121660.0,121650.0,0.68068963]
[1754883094306,2.44753651,121660.0,121650.0,0.68068963]
[1754883094905,1.68053651,121660.0,121650.0,0.68068963]
[1754883095213,2.44753651,121660.0,121650.0,0.68068963]
[1754883095512,2.44753651,121660.0,121650.0,0.87233733]
[1754883096505,2.44757651,121660.0,121650.0,0.68068963]
[1754883096909,1.68053651,121660.0,121650.0,0.68068963]
[1754883097306,2.44713651,121660.0,121650.0,0.68068963]
[1754883097906,2.36494781,121660.0,121650.0,0.68068963]
[1754883098107,2.36470781,121660.0,121650.0,0.68468963]
[1754883098414,2.00390781,121660.0,121650.0,0.68468963]
[1754883098810,0.94808781,121660.0,121650.0,0.68468963]
[1754883099007,0.94808781,121660.0,121650.0,0.87633733]
[1754883099505,1.03043651,121660.0,121650.0,0.87633733]
[1754883099914,0.26207651,121660.0,121650.0,0.87633733]
[1754883100112,0.26207651,121660.0,121650.0,0.68468963]
[1754883100509,0.94572781,121660.0,121650.0,0.68468963]
[1754883100709,0.26207651,121660.0,121650.0,0.68468963]
[1754883100909,1.02779651,121660.0,121650.0,0.68468963]
[1754883101109,1.02679651,121660.0,121650.0,0.68568963]
[1754883101810,0.28017651,121660.0,121650.0,0.68568963]
[1754883102206,0.64097651,121660.0,121650.0,0.68468963]
[1754883102706,1.40673651,121660.0,121650.0,0.68468963]
[1754883103218,1.40765651,121660.0,121650.0,0.68468963]
[1754883103517,0.64197651,121660.0,121650.0,0.68068963]
[1754883103717,0.94544781,121660.0,121650.0,0.68068963]
[1754883103911,0.94444781,121660.0,121650.0,0.68068963]
[1754883104118,0.94644781,121660.0,121650.0,0.68068963]
[1754883104321,0.18088781,121660.0,121650.0,0.68068963]
[1754883104511,1.02863651,121660.0,121650.0,0.68068963]
[1754883104711,1.02763651,121660.0,121650.0,0.68068963]
[1754883104911,1.02763651,121660.0,121650.0,0.94348963]
[1754883105418,1.02863651,121660.0,121650.0,0.94348963]
[1754883106018,1.02763651,121660.0,121650.0,0.94348963]
[1754883107220,0.26207651,121660.0,121650.0,0.94348963]
[1754883107520,1.02759651,121660.0,121650.0,0.94348963]
[1754883108516,1.02759651,121660.0,121650.0,0.94434963]
[1754883109521,0.79287781,121660.0,121650.0,0.94434963]
[1754883109720,0.02735781,121660.0,121650.0,0.94434963]
[1754883109921,0.79283781,121660.0,121650.0,0.94434963]
[1754883110922,0.79283781,121660.0,121650.0,0.68154963]
[1754883111217,0.3608,121680.0,121660.0,0.27977]
[1754883111526,6.181e-05,121690.0,121680.0,0.4727]
[1754883111713,0.76554181,121690.0,121680.0,1.2095683]
[1754883111916,0.76554181,121690.0,121680.0,1.33277093]
[1754883112221,0.76554181,121690.0,121680.0,1.49112427]